Workbook

Sheet Templ
A1: 1
B4: Список участников соревнований | I4: Название соревнований
B5: № | C5: Гимнастка | D5: Год | E5: Разряд | F5: Город | G5: Тренер | J5: 1 | K5: 2 | L5: 3 | M5: 4 | N5: Оценка | O5: Сбавка | P5: Сумма | Q5: МЕСТО | T5: 1 | U5: 2 | V5: 3 | W5: 4 | X5: 5 | Y5: Оценка | Z5: Сбавка | AA5: Сумма | AB5: МЕСТО
B6: 1 | I6: D | N6: =(SUM(J6:M6)-(MIN(J6:M6)+MAX(J6:M6)))/2 -> 0 | P6: =SUM(N6:N7)-SUM(O6:O7) -> 0 | S6: D | Y6: =(SUM(T6:W6)-(MIN(T6:W6)+MAX(T6:W6)))/2 -> 0 | AA6: =SUM(Y6:Y7)-SUM(Z6:Z7) -> 0
B7: =B6+1 -> 2 | I7: E | N7: =(SUM(J7:M7)-(MIN(J7:M7)+MAX(J7:M7)))/2 -> 0 | S7: E | Y7: =(SUM(T7:X7)-(MIN(T7:X7)+MAX(T7:X7)))/3 -> 0
C15: Сводный протокол
B19: № | C19: Команда/Гимнастка | D19: г.р. | E19: Разряд | F19: Город | G19: Тренер | J19: 1 | K19: 2 | L19: 3 | M19: 4 | N19: Оценка | O19: Сбавка | P19: Сумма | Q19: МЕСТО
B20: 1 | I20: D1 | N20: =(SUM(J20:M20)-(MIN(J20:M20)+MAX(J20:M20)))/2 -> 0 | P20: =SUM(N20:N23)-SUM(O20:O23) -> 0
I21: D2 | N21: 0
I22: A | N22: =(SUM(J22:M22)-(MIN(J22:M22)+MAX(J22:M22)))/2 -> 0
I23: E | N23: =(SUM(J23:M23)-(MIN(J23:M23)+MAX(J23:M23)))/2 -> 0
C30: Главный судья
C32: Главный секретарь

Sheet Data
C2: Вид соревнований | D2: Индивидуальные
C3: Число участников | D3: 17
C5: Количество видов: | D5: 3
C6: Вид оценки: | D6: 5
B8: Список участников соревнований | I8: Жеребьевка
B9: № | C9: Гимнастка | D9: Год | E9: Разряд | F9: Город | G9: Тренер | I9: № | J9: Гимнастка | K9: Год | L9: Разряд | M9: Город
B10: 1 | C10: Lenshina Ekaterina | D10: 2003 | F10: RUS Ivanovo | I10: =$B$15 -> 6 | J10: =$C$15 -> Ikramova Asal | K10: =$D$15 -> 2002 | L10: =$E$15 -> 0 | M10: =$F$15 -> UZB
B11: =B10+1 -> 2 | C11: Korin Anastasiya | D11: 2003 | F11: RUS Ivanovo | I11: =$B$17 -> 8 | J11: =$C$17 -> Zilber Sofia | K11: =$D$17 -> 2003 | L11: =$E$17 -> 0 | M11: =$F$17 -> RUS Eketerinburg
B12: 3 | C12: Ivanova Valeriya | D12: 2003 | F12: RUS Ivanovo | I12: =$B$22 -> 13 | J12: =$C$22 -> Pavlovskaya Appolinariya | K12: =$D$22 -> 2003 | L12: =$E$22 -> 0 | M12: =$F$22 -> RUS St.Peterburg
B13: 4 | C13: Ansaldo Alice | D13: 2003 | F13: ITA | I13: =$B$14 -> 5 | J13: =$C$14 -> Luana Gomes | K13: =$D$14 -> 2003 | L13: =$E$14 -> 0 | M13: =$F$14 -> POR
B14: 5 | C14: Luana Gomes | D14: 2003 | F14: POR | I14: =$B$26 -> 17 | J14: =$C$26 -> Kurmaeva Maria | K14: =$D$26 -> 2003 | L14: =$E$26 -> 0 | M14: =$F$26 -> RUS Shuya
B15: 6 | C15: Ikramova Asal | D15: 2002 | F15: UZB | I15: =$B$18 -> 9 | J15: =$C$18 -> Brilyakova Darya | K15: =$D$18 -> 2003 | L15: =$E$18 -> 0 | M15: =$F$18 -> RUS Krasnoyarsk
B16: 7 | I16: =$B$21 -> 12 | J16: =$C$21 -> Eresko Elizaveta | K16: =$D$21 -> 2003 | L16: =$E$21 -> 0 | M16: =$F$21 -> RUS St.Peterburg
B17: 8 | C17: Zilber Sofia | D17: 2003 | F17: RUS Eketerinburg | I17: =$B$24 -> 15 | J17: =$C$24 -> Myasnyankina Uliya | K17: =$D$24 -> 2003 | L17: =$E$24 -> 0 | M17: =$F$24 -> RUS Tomsk
B18: 9 | C18: Brilyakova Darya | D18: 2003 | F18: RUS Krasnoyarsk | I18: =$B$16 -> 7 | J18: =$C$16 -> 0 | K18: =$D$16 -> 0 | L18: =$E$16 -> 0 | M18: =$F$16 -> 0
B19: 10 | C19: Strashko Anna | D19: 2003 | F19: RUS Orehovo-Zuevo | I19: =$B$23 -> 14 | J19: =$C$23 -> Bryshevich Zlata | K19: =$D$23 -> 2003 | L19: =$E$23 -> 0 | M19: =$F$23 -> RUS Severs
B20: 11 | E20: 4.2 | F20: 3.9 | G20: 4.3 | I20: =$B$20 -> 11 | J20: =$C$20 -> 0 | K20: =$D$20 -> 0 | L20: =$E$20 -> 4.2 | M20: =$F$20 -> 3.9
B21: 12 | C21: Eresko Elizaveta | D21: 2003 | F21: RUS St.Peterburg | I21: =$B$25 -> 16 | J21: =$C$25 -> Lakireva Olga | K21: =$D$25 -> 2003 | L21: =$E$25 -> 0 | M21: =$F$25 -> RUS Chelyabinsk
B22: 13 | C22: Pavlovskaya Appolinariya | D22: 2003 | F22: RUS St.Peterburg | I22: =$B$19 -> 10 | J22: =$C$19 -> Strashko Anna | K22: =$D$19 -> 2003 | L22: =$E$19 -> 0 | M22: =$F$19 -> RUS Orehovo-Zuevo
B23: 14 | C23: Bryshevich Zlata | D23: 2003 | F23: RUS Severs | I23: =$B$13 -> 4 | J23: =$C$13 -> Ansaldo Alice | K23: =$D$13 -> 2003 | L23: =$E$13 -> 0 | M23: =$F$13 -> ITA
B24: 15 | C24: Myasnyankina Uliya | D24: 2003 | F24: RUS Tomsk | I24: =$B$11 -> 2 | J24: =$C$11 -> Korin Anastasiya | K24: =$D$11 -> 2003 | L24: =$E$11 -> 0 | M24: =$F$11 -> RUS Ivanovo
B25: 16 | C25: Lakireva Olga | D25: 2003 | F25: RUS Chelyabinsk | I25: =$B$12 -> 3 | J25: =$C$12 -> Ivanova Valeriya | K25: =$D$12 -> 2003 | L25: =$E$12 -> 0 | M25: =$F$12 -> RUS Ivanovo
B26: 17 | C26: Kurmaeva Maria | D26: 2003 | F26: RUS Shuya | I26: =$B$10 -> 1 | J26: =$C$10 -> Lenshina Ekaterina | K26: =$D$10 -> 2003 | L26: =$E$10 -> 0 | M26: =$F$10 -> RUS Ivanovo

Sheet Вид 1
D1: 2 | E1: 9 | F1: 13
B9: № | C9: Гимнастка | E9: 1 | F9: 2 | G9: 3 | H9: 4 | I9: 5 | J9: Оценка | K9: Сбавка | L9: Сумма | M9: МЕСТО
B10: =Data!$B$15 -> 6 | C10: =Data!$C$15 -> Ikramova Asal | D10: D | J10: =(SUM(E10:H10)-(MIN(E10:H10)+MAX(E10:H10)))/2 -> 0 | L10: =SUM(J10:J11)-SUM(K10:K11) -> 0 | M10: =RANK(L10,$L$10:$L$43,0) -> 15
D11: E | J11: =(SUM(E11:I11)-(MIN(E11:I11)+MAX(E11:I11)))/3 -> 0
B12: =Data!$B$17 -> 8 | C12: =Data!$C$17 -> Zilber Sofia | D12: D | E12: 3.9 | F12: 5.5 | G12: 5.9 | H12: 5.3 | J12: =(SUM(E12:H12)-(MIN(E12:H12)+MAX(E12:H12)))/2 -> 5.4 | L12: =SUM(J12:J13)-SUM(K12:K13) -> 13.73333333 | M12: =RANK(L12,$L$10:$L$43,0) -> 4
D13: E | E13: 8.3 | F13: 8.4 | G13: 8.1 | H13: 8.3 | I13: 8.7 | J13: =(SUM(E13:I13)-(MIN(E13:I13)+MAX(E13:I13)))/3 -> 8.333333333
B14: =Data!$B$22 -> 13 | C14: =Data!$C$22 -> Pavlovskaya Appolinariya | D14: D | E14: 4.4 | F14: 5.5 | G14: 4.2 | H14: 5.3 | J14: =(SUM(E14:H14)-(MIN(E14:H14)+MAX(E14:H14)))/2 -> 4.85 | L14: =SUM(J14:J15)-SUM(K14:K15) -> 12.61666667 | M14: =RANK(L14,$L$10:$L$43,0) -> 9
D15: E | E15: 8.3 | F15: 7.9 | G15: 7.2 | H15: 7.5 | I15: 7.9 | J15: =(SUM(E15:I15)-(MIN(E15:I15)+MAX(E15:I15)))/3 -> 7.766666667
B16: =Data!$B$14 -> 5 | C16: =Data!$C$14 -> Luana Gomes | D16: D | E16: 3.8 | F16: 4.3 | G16: 4.8 | H16: 4.4 | J16: =(SUM(E16:H16)-(MIN(E16:H16)+MAX(E16:H16)))/2 -> 4.35 | L16: =SUM(J16:J17)-SUM(K16:K17) -> 12.15 | M16: =RANK(L16,$L$10:$L$43,0) -> 13
D17: E | E17: 8.1 | F17: 8.2 | G17: 7.6 | H17: 7.6 | I17: 7.7 | J17: =(SUM(E17:I17)-(MIN(E17:I17)+MAX(E17:I17)))/3 -> 7.8
B18: =Data!$B$26 -> 17 | C18: =Data!$C$26 -> Kurmaeva Maria | D18: D | J18: =(SUM(E18:H18)-(MIN(E18:H18)+MAX(E18:H18)))/2 -> 0 | L18: 13.65 | M18: =RANK(L18,$L$10:$L$43,0) -> 5
D19: E | J19: =(SUM(E19:I19)-(MIN(E19:I19)+MAX(E19:I19)))/3 -> 0
B20: =Data!$B$18 -> 9 | C20: =Data!$C$18 -> Brilyakova Darya | D20: D | E20: 5.8 | F20: 5.3 | G20: 6.5 | H20: 5.3 | J20: =(SUM(E20:H20)-(MIN(E20:H20)+MAX(E20:H20)))/2 -> 5.55 | L20: =SUM(J20:J21)-SUM(K20:K21) -> 13.81666667 | M20: =RANK(L20,$L$10:$L$43,0) -> 3
D21: E | E21: 8.4 | F21: 8.6 | G21: 8.4 | H21: 8 | I21: 8 | J21: =(SUM(E21:I21)-(MIN(E21:I21)+MAX(E21:I21)))/3 -> 8.266666667
B22: =Data!$B$21 -> 12 | C22: =Data!$C$21 -> Eresko Elizaveta | D22: D | E22: 5.1 | F22: 4.4 | G22: 5.4 | H22: 3.4 | J22: =(SUM(E22:H22)-(MIN(E22:H22)+MAX(E22:H22)))/2 -> 4.75 | L22: =SUM(J22:J23)-SUM(K22:K23) -> 12.48333333 | M22: =RANK(L22,$L$10:$L$43,0) -> 10
D23: E | E23: 7.9 | F23: 8.1 | G23: 7.4 | H23: 7.7 | I23: 7.6 | J23: =(SUM(E23:I23)-(MIN(E23:I23)+MAX(E23:I23)))/3 -> 7.733333333
B24: =Data!$B$24 -> 15 | C24: =Data!$C$24 -> Myasnyankina Uliya | D24: D | E24: 4.8 | F24: 4.9 | G24: 5.3 | H24: 5.3 | J24: =(SUM(E24:H24)-(MIN(E24:H24)+MAX(E24:H24)))/2 -> 5.1 | L24: =SUM(J24:J25)-SUM(K24:K25) -> 13.53333333 | M24: =RANK(L24,$L$10:$L$43,0) -> 6
D25: E | E25: 8.3 | F25: 8.5 | G25: 8.6 | H25: 8.5 | I25: 8.2 | J25: =(SUM(E25:I25)-(MIN(E25:I25)+MAX(E25:I25)))/3 -> 8.433333333
B26: =Data!$B$16 -> 7 | C26: =Data!$C$16 -> 0 | D26: D | J26: =(SUM(E26:H26)-(MIN(E26:H26)+MAX(E26:H26)))/2 -> 0 | L26: =SUM(J26:J27)-SUM(K26:K27) -> 0 | M26: =RANK(L26,$L$10:$L$43,0) -> 15
D27: E | J27: =(SUM(E27:I27)-(MIN(E27:I27)+MAX(E27:I27)))/3 -> 0
B28: =Data!$B$23 -> 14 | C28: =Data!$C$23 -> Bryshevich Zlata | D28: D | E28: 4.6 | F28: 6 | G28: 5.7 | H28: 5.8 | J28: =(SUM(E28:H28)-(MIN(E28:H28)+MAX(E28:H28)))/2 -> 5.75 | L28: =SUM(J28:J29)-SUM(K28:K29) -> 13.95 | M28: =RANK(L28,$L$10:$L$43,0) -> 1
D29: E | E29: 8.1 | F29: 8.7 | G29: 8.2 | H29: 8.3 | I29: 8.1 | J29: =(SUM(E29:I29)-(MIN(E29:I29)+MAX(E29:I29)))/3 -> 8.2
B30: =Data!$B$20 -> 11 | C30: =Data!$C$20 -> 0 | D30: D | J30: =(SUM(E30:H30)-(MIN(E30:H30)+MAX(E30:H30)))/2 -> 0 | L30: =SUM(J30:J31)-SUM(K30:K31) -> 0 | M30: =RANK(L30,$L$10:$L$43,0) -> 15
D31: E | J31: =(SUM(E31:I31)-(MIN(E31:I31)+MAX(E31:I31)))/3 -> 0
B32: =Data!$B$25 -> 16 | C32: =Data!$C$25 -> Lakireva Olga | D32: D | J32: =(SUM(E32:H32)-(MIN(E32:H32)+MAX(E32:H32)))/2 -> 0 | L32: 12.433 | M32: =RANK(L32,$L$10:$L$43,0) -> 11
D33: E | J33: =(SUM(E33:I33)-(MIN(E33:I33)+MAX(E33:I33)))/3 -> 0
B34: =Data!$B$19 -> 10 | C34: =Data!$C$19 -> Strashko Anna | D34: D | J34: =(SUM(E34:H34)-(MIN(E34:H34)+MAX(E34:H34)))/2 -> 0 | L34: 13.883 | M34: =RANK(L34,$L$10:$L$43,0) -> 2
D35: E | J35: =(SUM(E35:I35)-(MIN(E35:I35)+MAX(E35:I35)))/3 -> 0
B36: =Data!$B$13 -> 4 | C36: =Data!$C$13 -> Ansaldo Alice | D36: D | J36: =(SUM(E36:H36)-(MIN(E36:H36)+MAX(E36:H36)))/2 -> 0 | L36: 9.6 | M36: =RANK(L36,$L$10:$L$43,0) -> 14
D37: E | J37: =(SUM(E37:I37)-(MIN(E37:I37)+MAX(E37:I37)))/3 -> 0
B38: =Data!$B$11 -> 2 | C38: =Data!$C$11 -> Korin Anastasiya | D38: D | J38: =(SUM(E38:H38)-(MIN(E38:H38)+MAX(E38:H38)))/2 -> 0 | L38: 12.183 | M38: =RANK(L38,$L$10:$L$43,0) -> 12
D39: E | J39: =(SUM(E39:I39)-(MIN(E39:I39)+MAX(E39:I39)))/3 -> 0
B40: =Data!$B$12 -> 3 | C40: =Data!$C$12 -> Ivanova Valeriya | D40: D | E40: 3.7 | F40: 4.9 | G40: 5 | H40: 4.8 | J40: =(SUM(E40:H40)-(MIN(E40:H40)+MAX(E40:H40)))/2 -> 4.85 | L40: =SUM(J40:J41)-SUM(K40:K41) -> 13.08333333 | M40: =RANK(L40,$L$10:$L$43,0) -> 7
D41: E | E41: 8.4 | F41: 8.2 | G41: 7.5 | H41: 8.6 | I41: 8.1 | J41: =(SUM(E41:I41)-(MIN(E41:I41)+MAX(E41:I41)))/3 -> 8.233333333
B42: =Data!$B$10 -> 1 | C42: =Data!$C$10 -> Lenshina Ekaterina | D42: D | J42: =(SUM(E42:H42)-(MIN(E42:H42)+MAX(E42:H42)))/2 -> 0 | L42: 12.617 | M42: =RANK(L42,$L$10:$L$43,0) -> 8
D43: E | J43: =(SUM(E43:I43)-(MIN(E43:I43)+MAX(E43:I43)))/3 -> 0

Sheet Вид 2
D1: 2 | E1: 9 | F1: 13
B9: № | C9: Гимнастка | E9: 1 | F9: 2 | G9: 3 | H9: 4 | I9: 5 | J9: Оценка | K9: Сбавка | L9: Сумма | M9: МЕСТО
B10: =Data!$B$15 -> 6 | C10: =Data!$C$15 -> Ikramova Asal | D10: D | J10: =(SUM(E10:H10)-(MIN(E10:H10)+MAX(E10:H10)))/2 -> 0 | L10: =SUM(J10:J11)-SUM(K10:K11) -> 0 | M10: =RANK(L10,$L$10:$L$43,0) -> 15
D11: E | J11: =(SUM(E11:I11)-(MIN(E11:I11)+MAX(E11:I11)))/3 -> 0
B12: =Data!$B$17 -> 8 | C12: =Data!$C$17 -> Zilber Sofia | D12: D | E12: 4.2 | F12: 5.5 | G12: 5.4 | H12: 4.6 | J12: =(SUM(E12:H12)-(MIN(E12:H12)+MAX(E12:H12)))/2 -> 5 | L12: =SUM(J12:J13)-SUM(K12:K13) -> 12.6 | M12: =RANK(L12,$L$10:$L$43,0) -> 3
D13: E | E13: 7.4 | F13: 8 | G13: 7.3 | H13: 7.4 | I13: 8 | J13: =(SUM(E13:I13)-(MIN(E13:I13)+MAX(E13:I13)))/3 -> 7.6
B14: =Data!$B$22 -> 13 | C14: =Data!$C$22 -> Pavlovskaya Appolinariya | D14: D | E14: 3 | F14: 4.5 | G14: 2.5 | H14: 4.2 | J14: =(SUM(E14:H14)-(MIN(E14:H14)+MAX(E14:H14)))/2 -> 3.6 | L14: =SUM(J14:J15)-SUM(K14:K15) -> 10.53333333 | M14: =RANK(L14,$L$10:$L$43,0) -> 12
D15: E | E15: 7.8 | F15: 7 | G15: 6.6 | H15: 6.2 | I15: 7.2 | J15: =(SUM(E15:I15)-(MIN(E15:I15)+MAX(E15:I15)))/3 -> 6.933333333
B16: =Data!$B$14 -> 5 | C16: =Data!$C$14 -> Luana Gomes | D16: D | E16: 3.1 | F16: 3.8 | G16: 4.3 | H16: 4.2 | J16: =(SUM(E16:H16)-(MIN(E16:H16)+MAX(E16:H16)))/2 -> 4 | L16: =SUM(J16:J17)-SUM(K16:K17) -> 11.2 | M16: =RANK(L16,$L$10:$L$43,0) -> 10
D17: E | E17: 7.8 | F17: 7.5 | G17: 6.8 | H17: 7 | I17: 7.1 | J17: =(SUM(E17:I17)-(MIN(E17:I17)+MAX(E17:I17)))/3 -> 7.2
B18: =Data!$B$26 -> 17 | C18: =Data!$C$26 -> Kurmaeva Maria | D18: D | E18: 5.7 | F18: 4.6 | G18: 4.5 | H18: 4.3 | J18: =(SUM(E18:H18)-(MIN(E18:H18)+MAX(E18:H18)))/2 -> 4.55 | L18: =SUM(J18:J19)-SUM(K18:K19) -> 12.35 | M18: =RANK(L18,$L$10:$L$43,0) -> 4
D19: E | E19: 8.3 | F19: 7.8 | G19: 7.7 | H19: 7.4 | I19: 7.9 | J19: =(SUM(E19:I19)-(MIN(E19:I19)+MAX(E19:I19)))/3 -> 7.8
B20: =Data!$B$18 -> 9 | C20: =Data!$C$18 -> Brilyakova Darya | D20: D | E20: 4.2 | F20: 3.9 | G20: 4.3 | H20: 4.7 | J20: =(SUM(E20:H20)-(MIN(E20:H20)+MAX(E20:H20)))/2 -> 4.25 | L20: =SUM(J20:J21)-SUM(K20:K21) -> 11.48333333 | M20: =RANK(L20,$L$10:$L$43,0) -> 9
D21: E | E21: 7.2 | F21: 7.2 | G21: 5.7 | H21: 7.3 | I21: 7.6 | J21: =(SUM(E21:I21)-(MIN(E21:I21)+MAX(E21:I21)))/3 -> 7.233333333
B22: =Data!$B$21 -> 12 | C22: =Data!$C$21 -> Eresko Elizaveta | D22: D | E22: 3.8 | F22: 4.9 | G22: 4.1 | H22: 5.2 | J22: =(SUM(E22:H22)-(MIN(E22:H22)+MAX(E22:H22)))/2 -> 4.5 | L22: =SUM(J22:J23)-SUM(K22:K23) -> 11.8 | M22: =RANK(L22,$L$10:$L$43,0) -> 8
D23: E | E23: 7.1 | F23: 7.4 | G23: 6.9 | H23: 7.4 | I23: 7.4 | J23: =(SUM(E23:I23)-(MIN(E23:I23)+MAX(E23:I23)))/3 -> 7.3
B24: =Data!$B$24 -> 15 | C24: =Data!$C$24 -> Myasnyankina Uliya | D24: D | E24: 4.5 | F24: 4.8 | G24: 6.3 | H24: 5.6 | J24: =(SUM(E24:H24)-(MIN(E24:H24)+MAX(E24:H24)))/2 -> 5.2 | L24: =SUM(J24:J25)-SUM(K24:K25) -> 13.26666667 | M24: =RANK(L24,$L$10:$L$43,0) -> 2
D25: E | E25: 8.2 | F25: 7.9 | G25: 8.1 | H25: 7.8 | I25: 8.2 | J25: =(SUM(E25:I25)-(MIN(E25:I25)+MAX(E25:I25)))/3 -> 8.066666667
B26: =Data!$B$16 -> 7 | C26: =Data!$C$16 -> 0 | D26: D | J26: =(SUM(E26:H26)-(MIN(E26:H26)+MAX(E26:H26)))/2 -> 0 | L26: =SUM(J26:J27)-SUM(K26:K27) -> 0 | M26: =RANK(L26,$L$10:$L$43,0) -> 15
D27: E | J27: =(SUM(E27:I27)-(MIN(E27:I27)+MAX(E27:I27)))/3 -> 0
B28: =Data!$B$23 -> 14 | C28: =Data!$C$23 -> Bryshevich Zlata | D28: D | E28: 5.3 | F28: 6.3 | G28: 6.1 | H28: 6.6 | J28: =(SUM(E28:H28)-(MIN(E28:H28)+MAX(E28:H28)))/2 -> 6.2 | L28: =SUM(J28:J29)-SUM(K28:K29) -> 13.9 | M28: =RANK(L28,$L$10:$L$43,0) -> 1
D29: E | E29: 7.7 | F29: 8 | G29: 7.3 | H29: 7.5 | I29: 7.9 | J29: =(SUM(E29:I29)-(MIN(E29:I29)+MAX(E29:I29)))/3 -> 7.7
B30: =Data!$B$20 -> 11 | C30: =Data!$C$20 -> 0 | D30: D | J30: =(SUM(E30:H30)-(MIN(E30:H30)+MAX(E30:H30)))/2 -> 0 | L30: =SUM(J30:J31)-SUM(K30:K31) -> 0 | M30: =RANK(L30,$L$10:$L$43,0) -> 15
D31: E | J31: =(SUM(E31:I31)-(MIN(E31:I31)+MAX(E31:I31)))/3 -> 0
B32: =Data!$B$25 -> 16 | C32: =Data!$C$25 -> Lakireva Olga | D32: D | E32: 2.1 | F32: 2.8 | G32: 3.2 | H32: 2.8 | J32: =(SUM(E32:H32)-(MIN(E32:H32)+MAX(E32:H32)))/2 -> 2.8 | L32: =SUM(J32:J33)-SUM(K32:K33) -> 9.966666667 | M32: =RANK(L32,$L$10:$L$43,0) -> 13
D33: E | E33: 7.3 | F33: 7.3 | G33: 7 | H33: 6.7 | I33: 7.2 | J33: =(SUM(E33:I33)-(MIN(E33:I33)+MAX(E33:I33)))/3 -> 7.166666667
B34: =Data!$B$19 -> 10 | C34: =Data!$C$19 -> Strashko Anna | D34: D | E34: 3.4 | F34: 5.4 | G34: 4.5 | H34: 4.4 | J34: =(SUM(E34:H34)-(MIN(E34:H34)+MAX(E34:H34)))/2 -> 4.45 | L34: =SUM(J34:J35)-SUM(K34:K35) -> 11.91666667 | M34: =RANK(L34,$L$10:$L$43,0) -> 6
D35: E | E35: 8.2 | F35: 7.7 | G35: 6.8 | H35: 7 | I35: 7.7 | J35: =(SUM(E35:I35)-(MIN(E35:I35)+MAX(E35:I35)))/3 -> 7.466666667
B36: =Data!$B$13 -> 4 | C36: =Data!$C$13 -> Ansaldo Alice | D36: D | E36: 1.8 | F36: 1.8 | G36: 2.5 | H36: 2.4 | J36: =(SUM(E36:H36)-(MIN(E36:H36)+MAX(E36:H36)))/2 -> 2.1 | L36: =SUM(J36:J37)-SUM(K36:K37) -> 8.7 | M36: =RANK(L36,$L$10:$L$43,0) -> 14
D37: E | E37: 6.3 | F37: 6.8 | G37: 6.6 | H37: 6.4 | I37: 7 | J37: =(SUM(E37:I37)-(MIN(E37:I37)+MAX(E37:I37)))/3 -> 6.6
B38: =Data!$B$11 -> 2 | C38: =Data!$C$11 -> Korin Anastasiya | D38: D | E38: 2.7 | F38: 3 | G38: 4.3 | H38: 3.5 | J38: =(SUM(E38:H38)-(MIN(E38:H38)+MAX(E38:H38)))/2 -> 3.25 | L38: =SUM(J38:J39)-SUM(K38:K39) -> 10.65 | M38: =RANK(L38,$L$10:$L$43,0) -> 11
D39: E | E39: 7.9 | F39: 7.2 | G39: 6.8 | H39: 7.5 | I39: 7.5 | J39: =(SUM(E39:I39)-(MIN(E39:I39)+MAX(E39:I39)))/3 -> 7.4
B40: =Data!$B$12 -> 3 | C40: =Data!$C$12 -> Ivanova Valeriya | D40: D | E40: 4.3 | F40: 4 | G40: 5.7 | H40: 4.1 | J40: =(SUM(E40:H40)-(MIN(E40:H40)+MAX(E40:H40)))/2 -> 4.2 | L40: =SUM(J40:J41)-SUM(K40:K41) -> 11.9 | M40: =RANK(L40,$L$10:$L$43,0) -> 7
D41: E | E41: 8.3 | F41: 7.7 | G41: 7.4 | H41: 7.8 | I41: 7.6 | J41: =(SUM(E41:I41)-(MIN(E41:I41)+MAX(E41:I41)))/3 -> 7.7
B42: =Data!$B$10 -> 1 | C42: =Data!$C$10 -> Lenshina Ekaterina | D42: D | E42: 4.3 | F42: 4.5 | G42: 4.9 | H42: 4.3 | J42: =(SUM(E42:H42)-(MIN(E42:H42)+MAX(E42:H42)))/2 -> 4.4 | L42: =SUM(J42:J43)-SUM(K42:K43) -> 11.93333333 | M42: =RANK(L42,$L$10:$L$43,0) -> 5
D43: E | E43: 8.1 | F43: 7.4 | G43: 7.5 | H43: 7.3 | I43: 7.7 | J43: =(SUM(E43:I43)-(MIN(E43:I43)+MAX(E43:I43)))/3 -> 7.533333333

Sheet Вид 3
D1: 2 | E1: 9 | F1: 13
B9: № | C9: Гимнастка | E9: 1 | F9: 2 | G9: 3 | H9: 4 | I9: 5 | J9: Оценка | K9: Сбавка | L9: Сумма | M9: МЕСТО
B10: =Data!$B$15 -> 6 | C10: =Data!$C$15 -> Ikramova Asal | D10: D | J10: =(SUM(E10:H10)-(MIN(E10:H10)+MAX(E10:H10)))/2 -> 0 | L10: =SUM(J10:J11)-SUM(K10:K11) -> 0 | M10: =RANK(L10,$L$10:$L$43,0) -> 15
D11: E | J11: =(SUM(E11:I11)-(MIN(E11:I11)+MAX(E11:I11)))/3 -> 0
B12: =Data!$B$17 -> 8 | C12: =Data!$C$17 -> Zilber Sofia | D12: D | E12: 4.5 | F12: 4.6 | G12: 3.8 | H12: 4.5 | J12: =(SUM(E12:H12)-(MIN(E12:H12)+MAX(E12:H12)))/2 -> 4.5 | L12: =SUM(J12:J13)-SUM(K12:K13) -> 11.83333333 | M12: =RANK(L12,$L$10:$L$43,0) -> 10
D13: E | E13: 7.4 | F13: 6.3 | G13: 7 | H13: 7.6 | I13: 7.7 | J13: =(SUM(E13:I13)-(MIN(E13:I13)+MAX(E13:I13)))/3 -> 7.333333333
B14: =Data!$B$22 -> 13 | C14: =Data!$C$22 -> Pavlovskaya Appolinariya | D14: D | E14: 5.2 | F14: 5.1 | G14: 2.8 | H14: 5.5 | J14: =(SUM(E14:H14)-(MIN(E14:H14)+MAX(E14:H14)))/2 -> 5.15 | L14: =SUM(J14:J15)-SUM(K14:K15) -> 12.81666667 | M14: =RANK(L14,$L$10:$L$43,0) -> 5
D15: E | E15: 7.4 | F15: 7.8 | G15: 7.9 | H15: 7.5 | I15: 7.7 | J15: =(SUM(E15:I15)-(MIN(E15:I15)+MAX(E15:I15)))/3 -> 7.666666667
B16: =Data!$B$14 -> 5 | C16: =Data!$C$14 -> Luana Gomes | D16: D | E16: 1.8 | F16: 2.3 | G16: 1.7 | H16: 2.6 | J16: =(SUM(E16:H16)-(MIN(E16:H16)+MAX(E16:H16)))/2 -> 2.05 | L16: =SUM(J16:J17)-SUM(K16:K17) -> 7.783333333 | M16: =RANK(L16,$L$10:$L$43,0) -> 13
D17: E | E17: 5 | F17: 6.3 | G17: 5.7 | H17: 5.5 | I17: 6 | J17: =(SUM(E17:I17)-(MIN(E17:I17)+MAX(E17:I17)))/3 -> 5.733333333
B18: =Data!$B$26 -> 17 | C18: =Data!$C$26 -> Kurmaeva Maria | D18: D | E18: 6.2 | F18: 5.5 | G18: 4.7 | H18: 5.4 | J18: =(SUM(E18:H18)-(MIN(E18:H18)+MAX(E18:H18)))/2 -> 5.45 | L18: =SUM(J18:J19)-SUM(K18:K19) -> 13.11666667 | M18: =RANK(L18,$L$10:$L$43,0) -> 3
D19: E | E19: 7.6 | F19: 7.5 | G19: 7.9 | H19: 7.8 | I19: 7.6 | J19: =(SUM(E19:I19)-(MIN(E19:I19)+MAX(E19:I19)))/3 -> 7.666666667
B20: =Data!$B$18 -> 9 | C20: =Data!$C$18 -> Brilyakova Darya | D20: D | E20: 4.9 | F20: 5.5 | G20: 4.5 | H20: 5.1 | J20: =(SUM(E20:H20)-(MIN(E20:H20)+MAX(E20:H20)))/2 -> 5 | L20: =SUM(J20:J21)-SUM(K20:K21) -> 12.5 | M20: =RANK(L20,$L$10:$L$43,0) -> 6
D21: E | E21: 8.1 | F21: 7.1 | G21: 7.4 | H21: 7.9 | I21: 7.2 | J21: =(SUM(E21:I21)-(MIN(E21:I21)+MAX(E21:I21)))/3 -> 7.5
B22: =Data!$B$21 -> 12 | C22: =Data!$C$21 -> Eresko Elizaveta | D22: D | E22: 5.2 | F22: 4.8 | G22: 4 | H22: 4.3 | J22: =(SUM(E22:H22)-(MIN(E22:H22)+MAX(E22:H22)))/2 -> 4.55 | L22: =SUM(J22:J23)-SUM(K22:K23) -> 11.88333333 | M22: =RANK(L22,$L$10:$L$43,0) -> 8
D23: E | E23: 7.6 | F23: 6.7 | G23: 7.5 | H23: 7.4 | I23: 7.1 | J23: =(SUM(E23:I23)-(MIN(E23:I23)+MAX(E23:I23)))/3 -> 7.333333333
B24: =Data!$B$24 -> 15 | C24: =Data!$C$24 -> Myasnyankina Uliya | D24: D | E24: 6.5 | F24: 5.6 | G24: 6 | H24: 5.8 | J24: =(SUM(E24:H24)-(MIN(E24:H24)+MAX(E24:H24)))/2 -> 5.9 | L24: =SUM(J24:J25)-SUM(K24:K25) -> 13.83333333 | M24: =RANK(L24,$L$10:$L$43,0) -> 1
D25: E | E25: 7.8 | F25: 8.5 | G25: 7.6 | H25: 8.4 | I25: 7.3 | J25: =(SUM(E25:I25)-(MIN(E25:I25)+MAX(E25:I25)))/3 -> 7.933333333
B26: =Data!$B$16 -> 7 | C26: =Data!$C$16 -> 0 | D26: D | J26: =(SUM(E26:H26)-(MIN(E26:H26)+MAX(E26:H26)))/2 -> 0 | L26: =SUM(J26:J27)-SUM(K26:K27) -> 0 | M26: =RANK(L26,$L$10:$L$43,0) -> 15
D27: E | J27: =(SUM(E27:I27)-(MIN(E27:I27)+MAX(E27:I27)))/3 -> 0
B28: =Data!$B$23 -> 14 | C28: =Data!$C$23 -> Bryshevich Zlata | D28: D | E28: 5.1 | F28: 5.6 | G28: 3.2 | H28: 5.8 | J28: =(SUM(E28:H28)-(MIN(E28:H28)+MAX(E28:H28)))/2 -> 5.35 | L28: =SUM(J28:J29)-SUM(K28:K29) -> 13.25 | M28: =RANK(L28,$L$10:$L$43,0) -> 2
D29: E | E29: 8 | F29: 8 | G29: 8 | H29: 7.7 | I29: 7.6 | J29: =(SUM(E29:I29)-(MIN(E29:I29)+MAX(E29:I29)))/3 -> 7.9
B30: =Data!$B$20 -> 11 | C30: =Data!$C$20 -> 0 | D30: D | J30: =(SUM(E30:H30)-(MIN(E30:H30)+MAX(E30:H30)))/2 -> 0 | L30: =SUM(J30:J31)-SUM(K30:K31) -> 0 | M30: =RANK(L30,$L$10:$L$43,0) -> 15
D31: E | J31: =(SUM(E31:I31)-(MIN(E31:I31)+MAX(E31:I31)))/3 -> 0
B32: =Data!$B$25 -> 16 | C32: =Data!$C$25 -> Lakireva Olga | D32: D | E32: 5.3 | F32: 5.2 | G32: 4.6 | H32: 4.7 | J32: =(SUM(E32:H32)-(MIN(E32:H32)+MAX(E32:H32)))/2 -> 4.95 | L32: =SUM(J32:J33)-SUM(K32:K33) -> 12.85 | M32: =RANK(L32,$L$10:$L$43,0) -> 4
D33: E | E33: 8 | F33: 7.5 | G33: 8.5 | H33: 7.8 | I33: 7.9 | J33: =(SUM(E33:I33)-(MIN(E33:I33)+MAX(E33:I33)))/3 -> 7.9
B34: =Data!$B$19 -> 10 | C34: =Data!$C$19 -> Strashko Anna | D34: D | E34: 4.4 | F34: 5.6 | G34: 4.5 | H34: 5.1 | J34: =(SUM(E34:H34)-(MIN(E34:H34)+MAX(E34:H34)))/2 -> 4.8 | L34: =SUM(J34:J35)-SUM(K34:K35) -> 11.36666667 | M34: =RANK(L34,$L$10:$L$43,0) -> 12
D35: E | E35: 7.1 | F35: 7 | G35: 7.4 | H35: 7.4 | I35: 6.9 | J35: =(SUM(E35:I35)-(MIN(E35:I35)+MAX(E35:I35)))/3 -> 7.166666667 | K35: 0.6
B36: =Data!$B$13 -> 4 | C36: =Data!$C$13 -> Ansaldo Alice | D36: D | E36: 1.3 | F36: 0.9 | G36: 0.4 | H36: 1.6 | J36: =(SUM(E36:H36)-(MIN(E36:H36)+MAX(E36:H36)))/2 -> 1.1 | L36: =SUM(J36:J37)-SUM(K36:K37) -> 6.4 | M36: =RANK(L36,$L$10:$L$43,0) -> 14
D37: E | E37: 5 | F37: 5.2 | G37: 5.1 | H37: 5.6 | I37: 5.7 | J37: =(SUM(E37:I37)-(MIN(E37:I37)+MAX(E37:I37)))/3 -> 5.3
B38: =Data!$B$11 -> 2 | C38: =Data!$C$11 -> Korin Anastasiya | D38: D | E38: 4.7 | F38: 4 | G38: 3.2 | H38: 4 | J38: =(SUM(E38:H38)-(MIN(E38:H38)+MAX(E38:H38)))/2 -> 4 | L38: =SUM(J38:J39)-SUM(K38:K39) -> 11.46666667 | M38: =RANK(L38,$L$10:$L$43,0) -> 11
D39: E | E39: 7.5 | F39: 5.7 | G39: 7.5 | H39: 7.7 | I39: 7.4 | J39: =(SUM(E39:I39)-(MIN(E39:I39)+MAX(E39:I39)))/3 -> 7.466666667
B40: =Data!$B$12 -> 3 | C40: =Data!$C$12 -> Ivanova Valeriya | D40: D | E40: 4.2 | F40: 4.7 | G40: 4.4 | H40: 4.9 | J40: =(SUM(E40:H40)-(MIN(E40:H40)+MAX(E40:H40)))/2 -> 4.55 | L40: =SUM(J40:J41)-SUM(K40:K41) -> 11.88333333 | M40: =RANK(L40,$L$10:$L$43,0) -> 9
D41: E | E41: 7.9 | F41: 7.3 | G41: 7.1 | H41: 7.6 | I41: 7.1 | J41: =(SUM(E41:I41)-(MIN(E41:I41)+MAX(E41:I41)))/3 -> 7.333333333
B42: =Data!$B$10 -> 1 | C42: =Data!$C$10 -> Lenshina Ekaterina | D42: D | E42: 4.8 | F42: 4.9 | G42: 4.1 | H42: 4.6 | J42: =(SUM(E42:H42)-(MIN(E42:H42)+MAX(E42:H42)))/2 -> 4.7 | L42: =SUM(J42:J43)-SUM(K42:K43) -> 11.96666667 | M42: =RANK(L42,$L$10:$L$43,0) -> 7
D43: E | E43: 7.4 | F43: 6.5 | G43: 8 | H43: 7.4 | I43: 7 | J43: =(SUM(E43:I43)-(MIN(E43:I43)+MAX(E43:I43)))/3 -> 7.266666667

Sheet Protocol
C1: International individual/national groups Rhythmic Gymnastic Tournament «MARINA CUP» April 17-21nd 2014
D7: Resuilts | E7: 2003
C9: № | D9: gymnast | E9: Разряд | F9: country | H9: type | I9: type | J9: total | K9: Rank
C10: 1 | D10: =IF(ISBLANK(Data!$C$23), "", Data!$C$23) -> Bryshevich Zlata | E10: =IF(ISBLANK(Data!$D$23), "", Data!$D$23) -> 2003 | F10: =IF(ISBLANK(Data!$F$23), "", Data!$F$23) -> RUS Severs | G10: ='Вид 1'!$L$28 -> 13.95 | H10: ='Вид 2'!$L$28 -> 13.9 | I10: ='Вид 3'!$L$28 -> 13.25 | J10: =SUM(G10:I10) -> 41.1 | K10: 1
C11: 2 | D11: =IF(ISBLANK(Data!$C$24), "", Data!$C$24) -> Myasnyankina Uliya | E11: =IF(ISBLANK(Data!$D$24), "", Data!$D$24) -> 2003 | F11: =IF(ISBLANK(Data!$F$24), "", Data!$F$24) -> RUS Tomsk | G11: ='Вид 1'!$L$24 -> 13.53333333 | H11: ='Вид 2'!$L$24 -> 13.26666667 | I11: ='Вид 3'!$L$24 -> 13.83333333 | J11: 40.63333333 | K11: 2
C12: 3 | D12: =IF(ISBLANK(Data!$C$14), "", Data!$C$14) -> Luana Gomes | E12: =IF(ISBLANK(Data!$D$14), "", Data!$D$14) -> 2003 | F12: =IF(ISBLANK(Data!$F$14), "", Data!$F$14) -> POR | G12: ='Вид 1'!$L$16 -> 12.15 | H12: ='Вид 2'!$L$16 -> 11.2 | I12: ='Вид 3'!$L$16 -> 7.783333333 | J12: 31.13333333 | K12: 3
C13: 4 | D13: =IF(ISBLANK(Data!$C$13), "", Data!$C$13) -> Ansaldo Alice | E13: =IF(ISBLANK(Data!$D$13), "", Data!$D$13) -> 2003 | F13: =IF(ISBLANK(Data!$F$13), "", Data!$F$13) -> ITA | G13: ='Вид 1'!$L$36 -> 9.6 | H13: ='Вид 2'!$L$36 -> 8.7 | I13: ='Вид 3'!$L$36 -> 6.4 | J13: 24.7 | K13: 4
C14: 5 | D14: =IF(ISBLANK(Data!$C$26), "", Data!$C$26) -> Kurmaeva Maria | E14: =IF(ISBLANK(Data!$D$26), "", Data!$D$26) -> 2003 | F14: =IF(ISBLANK(Data!$F$26), "", Data!$F$26) -> RUS Shuya | G14: ='Вид 1'!$L$18 -> 13.65 | H14: ='Вид 2'!$L$18 -> 12.35 | I14: ='Вид 3'!$L$18 -> 13.11666667 | J14: 39.11666667 | K14: 5
C15: 6 | D15: =IF(ISBLANK(Data!$C$17), "", Data!$C$17) -> Zilber Sofia | E15: =IF(ISBLANK(Data!$D$17), "", Data!$D$17) -> 2003 | F15: =IF(ISBLANK(Data!$F$17), "", Data!$F$17) -> RUS Eketerinburg | G15: ='Вид 1'!$L$12 -> 13.73333333 | H15: ='Вид 2'!$L$12 -> 12.6 | I15: ='Вид 3'!$L$12 -> 11.83333333 | J15: 38.16666667 | K15: 6
C16: 7 | D16: =IF(ISBLANK(Data!$C$18), "", Data!$C$18) -> Brilyakova Darya | E16: =IF(ISBLANK(Data!$D$18), "", Data!$D$18) -> 2003 | F16: =IF(ISBLANK(Data!$F$18), "", Data!$F$18) -> RUS Krasnoyarsk | G16: ='Вид 1'!$L$20 -> 13.81666667 | H16: ='Вид 2'!$L$20 -> 11.48333333 | I16: ='Вид 3'!$L$20 -> 12.5 | J16: 37.8 | K16: 7
C17: 8 | D17: =IF(ISBLANK(Data!$C$19), "", Data!$C$19) -> Strashko Anna | E17: =IF(ISBLANK(Data!$D$19), "", Data!$D$19) -> 2003 | F17: =IF(ISBLANK(Data!$F$19), "", Data!$F$19) -> RUS Orehovo-Zuevo | G17: ='Вид 1'!$L$34 -> 13.883 | H17: ='Вид 2'!$L$34 -> 11.91666667 | I17: ='Вид 3'!$L$34 -> 11.36666667 | J17: 37.16633333 | K17: 8
C18: 9 | D18: =IF(ISBLANK(Data!$C$12), "", Data!$C$12) -> Ivanova Valeriya | E18: =IF(ISBLANK(Data!$D$12), "", Data!$D$12) -> 2003 | F18: =IF(ISBLANK(Data!$F$12), "", Data!$F$12) -> RUS Ivanovo | G18: ='Вид 1'!$L$40 -> 13.08333333 | H18: ='Вид 2'!$L$40 -> 11.9 | I18: ='Вид 3'!$L$40 -> 11.88333333 | J18: 36.86666667 | K18: 9
C19: 10 | D19: =IF(ISBLANK(Data!$C$10), "", Data!$C$10) -> Lenshina Ekaterina | E19: =IF(ISBLANK(Data!$D$10), "", Data!$D$10) -> 2003 | F19: =IF(ISBLANK(Data!$F$10), "", Data!$F$10) -> RUS Ivanovo | G19: ='Вид 1'!$L$42 -> 12.617 | H19: ='Вид 2'!$L$42 -> 11.93333333 | I19: ='Вид 3'!$L$42 -> 11.96666667 | J19: 36.517 | K19: 10
C20: 11 | D20: =IF(ISBLANK(Data!$C$21), "", Data!$C$21) -> Eresko Elizaveta | E20: =IF(ISBLANK(Data!$D$21), "", Data!$D$21) -> 2003 | F20: =IF(ISBLANK(Data!$F$21), "", Data!$F$21) -> RUS St.Peterburg | G20: ='Вид 1'!$L$22 -> 12.48333333 | H20: ='Вид 2'!$L$22 -> 11.8 | I20: ='Вид 3'!$L$22 -> 11.88333333 | J20: 36.16666667 | K20: 11
C21: 12 | D21: =IF(ISBLANK(Data!$C$22), "", Data!$C$22) -> Pavlovskaya Appolinariya | E21: =IF(ISBLANK(Data!$D$22), "", Data!$D$22) -> 2003 | F21: =IF(ISBLANK(Data!$F$22), "", Data!$F$22) -> RUS St.Peterburg | G21: ='Вид 1'!$L$14 -> 12.61666667 | H21: ='Вид 2'!$L$14 -> 10.53333333 | I21: ='Вид 3'!$L$14 -> 12.81666667 | J21: 35.96666667 | K21: 12
C22: 13 | D22: =IF(ISBLANK(Data!$C$25), "", Data!$C$25) -> Lakireva Olga | E22: =IF(ISBLANK(Data!$D$25), "", Data!$D$25) -> 2003 | F22: =IF(ISBLANK(Data!$F$25), "", Data!$F$25) -> RUS Chelyabinsk | G22: ='Вид 1'!$L$32 -> 12.433 | H22: ='Вид 2'!$L$32 -> 9.966666667 | I22: ='Вид 3'!$L$32 -> 12.85 | J22: 35.24966667 | K22: 13
C23: 14 | D23: =IF(ISBLANK(Data!$C$11), "", Data!$C$11) -> Korin Anastasiya | E23: =IF(ISBLANK(Data!$D$11), "", Data!$D$11) -> 2003 | F23: =IF(ISBLANK(Data!$F$11), "", Data!$F$11) -> RUS Ivanovo | G23: ='Вид 1'!$L$38 -> 12.183 | H23: ='Вид 2'!$L$38 -> 10.65 | I23: ='Вид 3'!$L$38 -> 11.46666667 | J23: 34.29966667 | K23: 14
C26: Сhief justice | F26: Bravet Quesis Juana Maria FIG CUBA
C28: Chief Secretary | F28: Kalinina Lyubov NK RUSSIA
